[Event "St. Petersburg-ch Women 2021"]
[Site "St. Petersburg"]
[Date "2021.03.25"]
[Round "1.7"]
[White "Styazhkina, Anna"]
[Black "Tskhadadze, Anna"]
[Result "0-1"]
[ECO "B07"]
[WhiteElo "2294"]
[BlackElo "1879"]
[Annotator "RC"]
[PlyCount "132"]
[EventDate "2021.03.25"]
[EventType "swiss"]
[EventCountry "RUS"]
[SourceTitle "playchess.com"]
[Source "ChessBase"]
[SourceQuality "1"]
[TimeControl "40/5400+30:1800+30"]

1. e4 {[%emt 0:00:00]} d6 {[%emt 0:00:00]} 2. d4 {[%emt 0:00:00]} Nf6 {[%emt 0:00:00]} 3. Nc3 {[%emt 0:00:13]} e5 {[%emt 0:00:00]} 4. Nge2 {[%emt 0:00:51]} Be7 {[%emt 0:00:34]} 5. g3 {[%emt 0:00:40]} O-O {[%emt 0:00:19]} 6. Bg2 {[%emt 0:00:20]} Re8 {[%emt 0:00:40]} 7. O-O {[%emt 0:02:51]} c6 {[%emt 0:00:51]} 8. a4 {[%emt 0:02:42]} Bf8 {[%emt 0:03:41]} 9. h3 {[%emt 0:06:52]} Na6 {[%emt 0:02:08]} 10. Be3 {[%emt 0:17:30]} Nc7 {[%emt 0:02:43]} 11. g4 {[%emt 0:09:01]} exd4 {[%emt 0:17:16]} 12. Bxd4 {[%emt 0:01:51]} Bd7 {[%emt 0:04:28]} 13. Ng3 {[%emt 0:08:23]} c5 {[%emt 0:05:07]} 14. Be3 {[%emt 0:01:36]} Bc6 {[%emt 0:01:25]} 15. g5 {[%emt 0:03:13]} Nd7 {[%emt 0:00:12]} 16. b3 {[%emt 0:10:12]} g6 {[%emt 0:02:50]} 17. Qd2 {[%emt 0:02:32]} Bg7 {[%emt 0:06:41]} 18. Rad1 {[%emt 0:01:00]} Ne6 {[%emt 0:04:41]} 19. Nce2 {[%emt 0:03:43]} c4 {[%emt 0:07:00]} 20. b4 {[%emt 0:06:51]} a6 {[%emt 0:05:13]} 21. f4 {[%emt 0:03:33]} Bxa4 {[%emt 0:06:34]} 22. f5 {[%emt 0:07:02]} Nc7 {[%emt 0:02:29]} 23. f6 {[%emt 0:06:29]} Bf8 {[%emt 0:00:15]} 24. Nc3 {[%emt 0:01:40]} Bc6 {[%emt 0:00:25]} 25. Nd5 {[%emt 0:01:16]} Rc8 {[%emt 0:06:19]} 26. Qf2 {[%emt 0:01:45]} Nxd5 {[%emt 0:01:05]} 27. exd5 {[%emt 0:00:04]} Ba4 {[%emt 0:02:36]} 28. Rfe1 {[%emt 0:00:28]} a5 {[%emt 0:02:34]} 29. Ra1 {[%emt 0:00:54]} b5 {[%emt 0:00:20]} 30. Rab1 {[%emt 0:00:35]} axb4 {[%emt 0:00:35]} 31. Rxb4 {[%emt 0:00:10]} Qa5 {[%emt 0:01:36]} 32. Rbb1 {[%emt 0:00:40]} b4 {[%emt 0:03:19]} 33. Bd4 {[%emt 0:00:38]} b3 {[%emt 0:03:03]} 34. c3 {[%emt 0:00:32]} Ne5 {[%emt 0:04:10]} 35. Rf1 {[%emt 0:00:43]} Nd3 {[%emt 0:00:24]} 36. Qd2 {[%emt 0:00:19]} Ra8 {[%emt 0:03:01]} 37. h4 {[%emt 0:00:44]} Bd7 {[%emt 0:00:34]} 38. h5 {[%emt 0:00:23]} Qb5 {[%emt 0:02:02]} 39. hxg6 {[%emt 0:00:30]} hxg6 {[%emt 0:00:06]} 40. Qd1 {[%emt 0:00:00]} Ra2 {[%emt 0:00:00]} 41. Qf3 {[%emt 0:06:20]} b2 {[%emt 0:03:59]} 42. Qd1 {[%emt 0:12:15]} Rea8 {[%emt 0:01:45]} 43. Be4 {[%emt 0:02:24]} Bh3 {[%emt 0:05:49]} 44. Bxg6 {[%emt 0:10:37]} Qxd5 {[%emt 0:05:42]} 45. Ne4 {[%emt 0:01:27]} Qe6 {[%emt 0:02:09]} 46. Kh2 {[%emt 0:00:34]} Bg4 {[%emt 0:01:51]} 47. Qd2 {[%emt 0:00:33]} d5 {[%emt 0:00:38]} 48. Ng3 {[%emt 0:00:23]} fxg6 {[%emt 0:03:30]} 49. f7+ {[%emt 0:00:10]} Kh7 {[%emt 0:00:03]} 50. Rh1 {[%emt 0:00:54]} Bh3 {[%emt 0:01:33]} 51. Qg2 {[%emt 0:00:36]} Nf4 {[%emt 0:00:45]} 52. Qf3 {[%emt 0:00:25]} Qxf7 {[%emt 0:01:53]} 53. Be5 {[%emt 0:00:32]} Bg7 {[%emt 0:04:26]} 54. Bxf4 {[%emt 0:00:27]} Bf5 {[%emt 0:00:46]} 55. Nxf5 {[%emt 0:00:34]} Qxf5 {[%emt 0:00:10]} 56. Kg3+ {[%emt 0:00:24]} Kg8 {[%emt 0:00:07]} 57. Rhd1 {[%emt 0:00:30]} d4 {[%emt 0:02:45]} 58. Rxb2 {[%emt 0:00:30]} R2a3 {[%emt 0:01:19]} 59. Rc1 {[%emt 0:00:35]} dxc3 {[%emt 0:00:23]} 60. Rbc2 {[%emt 0:00:14]} Rd8 {[%emt 0:00:31]} 61. Be3 {[%emt 0:00:41]} Be5+ {[%emt 0:01:09]} 62. Kg2 {[%emt 0:00:28]} Qe6 {[%emt 0:00:36]} 63. Rf1 {[%emt 0:00:36]} Bg7 {[%emt 0:00:24]} 64. Bc5 {[%emt 0:00:29]} Ra5 {[%emt 0:00:29]} 65. Re2 {[%emt 0:00:28]} Qxe2+ {[%emt 0:00:59]} 66. Qxe2 {[%emt 0:00:14]} Rd2 {[%emt 0:02:03]} 0-1

[Event "St. Petersburg-ch Women 2021"]
[Site "St. Petersburg"]
[Date "2021.03.26"]
[Round "2.2"]
[White "Tskhadadze, Anna"]
[Black "Nazarova, Anastasia"]
[Result "1/2-1/2"]
[ECO "D30"]
[WhiteElo "1879"]
[BlackElo "2184"]
[Annotator "RC"]
[PlyCount "72"]
[EventDate "2021.03.25"]
[EventType "swiss"]
[EventCountry "RUS"]
[SourceTitle "playchess.com"]
[Source "ChessBase"]
[SourceQuality "1"]
[TimeControl "40/5400+30:1800+30"]

1. c4 {[%emt 0:00:00]} e6 {[%emt 0:02:12]} 2. Nf3 {[%emt 0:00:00]} d5 {[%emt 0:00:30]} 3. d4 {[%emt 0:00:08]} Nf6 {[%emt 0:00:12]} 4. e3 {[%emt 0:00:11]} Be7 {[%emt 0:01:01]} 5. b3 {[%emt 0:00:07]} b6 {[%emt 0:01:42]} 6. Bd3 {[%emt 0:00:14]} Bb7 {[%emt 0:00:11]} 7. O-O {[%emt 0:00:11]} O-O {[%emt 0:00:15]} 8. Nbd2 {[%emt 0:00:48]} Nbd7 {[%emt 0:02:18]} 9. Qc2 {[%emt 0:00:37]} h6 {[%emt 0:02:40]} 10. Bb2 {[%emt 0:03:01]} c5 {[%emt 0:01:43]} 11. Rac1 {[%emt 0:00:16]} Rc8 {[%emt 0:01:24]} 12. Qb1 {[%emt 0:02:26]} Rc7 {[%emt 0:05:41]} 13. Ne5 {[%emt 0:07:21]} Qa8 {[%emt 0:06:39]} 14. Nxd7 {[%emt 0:03:42]} Nxd7 {[%emt 0:03:00]} 15. cxd5 {[%emt 0:01:21]} Bxd5 {[%emt 0:01:22]} 16. Be4 {[%emt 0:02:20]} Rfc8 {[%emt 0:10:43]} 17. Bxd5 {[%emt 0:01:00]} Qxd5 {[%emt 0:01:05]} 18. Rfd1 {[%emt 0:02:40]} cxd4 {[%emt 0:08:08]} 19. Bxd4 {[%emt 0:04:28]} Rxc1 {[%emt 0:06:34]} 20. Rxc1 {[%emt 0:00:10]} Rc6 {[%emt 0:01:40]} 21. Nf3 {[%emt 0:03:33]} Ba3 {[%emt 0:04:16]} 22. Rd1 {[%emt 0:03:52]} Rd6 {[%emt 0:05:53]} 23. Rf1 {[%emt 0:03:28]} e5 {[%emt 0:03:18]} 24. e4 {[%emt 0:04:04]} Qb5 {[%emt 0:04:32]} 25. Bb2 {[%emt 0:02:42]} Bxb2 {[%emt 0:06:15]} 26. Qxb2 {[%emt 0:00:36]} Qd3 {[%emt 0:01:01]} 27. Nxe5 {[%emt 0:01:51]} Qxe4 {[%emt 0:00:10]} 28. Nxd7 {[%emt 0:52:53]} Rxd7 {[%emt 0:00:06]} 29. Qc3 {[%emt 0:00:00]} Qd3 {[%emt 0:04:26]} 30. Qc8+ {[%emt 0:00:00]} Kh7 {[%emt 0:00:11]} 31. h3 {[%emt 0:00:00]} Rd8 {[%emt 0:03:43]} 32. Qc7 {[%emt 0:00:00]} Rd7 {[%emt 0:00:15]} 33. Qc8 {[%emt 0:00:00]} Rd8 {[%emt 0:00:04]} 34. Qc7 {[%emt 0:00:00]} Rd7 {[%emt 0:00:02]} 35. Qc8 {[%emt 0:00:00]} Rd8 {[%emt 0:00:18]} 36. Qc7 {[%emt 0:00:00]} Rd7 {[%emt 0:14:30]} 1/2-1/2

[Event "St. Petersburg-ch Women 2021"]
[Site "St. Petersburg"]
[Date "2021.03.27"]
[Round "3.7"]
[White "Yurasova, Daria"]
[Black "Belenkaya, Dina"]
[Result "0-1"]
[ECO "B12"]
[WhiteElo "2110"]
[BlackElo "2293"]
[Annotator "NA"]
[PlyCount "120"]
[EventDate "2021.03.25"]
[EventType "swiss"]
[EventCountry "RUS"]
[SourceTitle "playchess.com"]
[Source "ChessBase"]
[SourceQuality "1"]
[TimeControl "40/5400+30:1800+30"]

1. e4 {[%emt 0:00:00]} c6 {[%emt 0:04:25]} 2. d4 {[%emt 0:00:01]} d5 {[%emt 0:00:15]} 3. e5 {[%emt 0:00:06]} Bf5 {[%emt 0:02:33]} 4. h4 {[%emt 0:00:05]} h6 {[%emt 0:06:46]} 5. g4 {[%emt 0:00:36]} Bd7 {[%emt 0:00:50]} 6. Nc3 {[%emt 0:07:09]} e6 {[%emt 0:02:06]} 7. Be3 {[%emt 0:01:12]} Qb6 {[%emt 0:13:35]} 8. Nge2 {[%emt 0:20:48]} c5 {[%emt 0:01:37]} 9. Qd2 {[%emt 0:01:04]} Nc6 {[%emt 0:10:49]} 10. f4 {[%emt 0:08:53]} Qa5 {[%emt 0:09:45]} 11. dxc5 {[%emt 0:09:44]} O-O-O {[%emt 0:08:10]} 12. Nd4 {[%emt 0:10:03]} Bxc5 {[%emt 0:03:37]} 13. Nb3 {[%emt 0:03:08]} Bxe3 {[%emt 0:00:18]} 14. Qxe3 {[%emt 0:00:02]} d4 {[%emt 0:08:56]} 15. Nxa5 {[%emt 0:02:30]} dxe3 {[%emt 0:00:02]} 16. Nc4 {[%emt 0:05:28]} Be8 {[%emt 0:03:17]} 17. Rh3 {[%emt 0:06:40]} h5 {[%emt 0:02:47]} 18. g5 {[%emt 0:00:21]} Nge7 {[%emt 0:01:05]} 19. Nd6+ {[%emt 0:00:31]} Kb8 {[%emt 0:01:03]} 20. Rxe3 {[%emt 0:00:39]} Ng6 {[%emt 0:01:21]} 21. O-O-O {[%emt 0:05:07]} Nxf4 {[%emt 0:08:23]} 22. Bb5 {[%emt 0:00:57]} Ng6 {[%emt 0:01:42]} 23. Bxc6 {[%emt 0:01:27]} Bxc6 {[%emt 0:01:27]} 24. Rf1 {[%emt 0:00:58]} Rhf8 {[%emt 0:01:06]} 25. Ncb5 {[%emt 0:08:42]} Nxh4 {[%emt 0:01:31]} 26. Nd4 {[%emt 0:00:13]} Bg2 {[%emt 0:02:04]} 27. Rf2 {[%emt 0:00:52]} b6 {[%emt 0:01:50]} 28. Ra3 {[%emt 0:02:19]} Bb7 {[%emt 0:00:35]} 29. N4b5 {[%emt 0:00:50]} Nf5 {[%emt 0:01:54]} 30. Nxf5 {[%emt 0:01:15]} exf5 {[%emt 0:00:01]} 31. Rxf5 {[%emt 0:00:01]} Bc8 {[%emt 0:00:25]} 32. Rf4 {[%emt 0:00:17]} Rd5 {[%emt 0:00:25]} 33. Nxa7 {[%emt 0:01:04]} Bd7 {[%emt 0:00:29]} 34. e6 {[%emt 0:01:07]} Bxe6 {[%emt 0:00:13]} 35. Nc6+ {[%emt 0:00:27]} Kb7 {[%emt 0:00:31]} 36. Ne7 {[%emt 0:02:09]} Rxg5 {[%emt 0:00:38]} 37. Rfa4 {[%emt 0:00:03]} Ra5 {[%emt 0:01:13]} 38. Re4 {[%emt 0:00:54]} Rxa3 {[%emt 0:01:16]} 39. bxa3 Ra8 {[%emt 0:00:00]} 40. Ng6 {[%emt 0:00:00]} Rxa3 {[%emt 0:00:00]} 41. Nf4 {[%emt 0:00:28]} Bxa2 {[%emt 0:09:38]} 42. Kb2 {[%emt 0:01:55]} Ra5 {[%emt 0:02:15]} 43. c4 {[%emt 0:01:01]} h4 {[%emt 0:03:49]} 44. Re7+ {[%emt 0:12:25]} Kc6 {[%emt 0:08:44]} 45. Rxf7 {[%emt 0:04:00]} g5 {[%emt 0:00:37]} 46. Rf6+ {[%emt 0:00:40]} Kb7 {[%emt 0:01:16]} 47. Rf7+ {[%emt 0:02:09]} Ka6 {[%emt 0:01:14]} 48. Ne6 {[%emt 0:00:48]} Bxc4 {[%emt 0:00:46]} 49. Nc7+ {[%emt 0:00:01]} Kb7 {[%emt 0:00:27]} 50. Rg7 {[%emt 0:00:03]} Kc6 {[%emt 0:01:07]} 51. Ne8 {[%emt 0:00:25]} Bf1 {[%emt 0:02:27]} 52. Rc7+ {[%emt 0:00:17]} Kd5 {[%emt 0:00:36]} 53. Rf7 {[%emt 0:00:57]} Bg2 {[%emt 0:00:49]} 54. Rg7 {[%emt 0:00:41]} Kd4 {[%emt 0:01:11]} 55. Nc7 {[%emt 0:01:03]} Re5 {[%emt 0:02:14]} 56. Na6 {[%emt 0:01:01]} h3 {[%emt 0:00:21]} 57. Rh7 {[%emt 0:00:03]} Rb5+ {[%emt 0:00:13]} 58. Kc1 {[%emt 0:00:16]} g4 {[%emt 0:00:20]} 59. Rh4 {[%emt 0:00:09]} Bf3 {[%emt 0:00:10]} 60. Rh8 {[%emt 0:00:41]} Ke3 {[%emt 0:00:20]} 0-1

[Event "St. Petersburg-ch Women 2021"]
[Site "St. Petersburg"]
[Date "2021.03.27"]
[Round "3.8"]
[White "Murashova, Ekaterina"]
[Black "Karmanova, Olga Dm."]
[Result "1-0"]
[ECO "B13"]
[WhiteElo "2207"]
[BlackElo "1971"]
[Annotator "NA"]
[PlyCount "43"]
[EventDate "2021.03.25"]
[EventType "swiss"]
[EventCountry "RUS"]
[SourceTitle "playchess.com"]
[Source "ChessBase"]
[SourceQuality "1"]
[TimeControl "40/5400+30:1800+30"]

1. e4 {[%emt 0:00:00]} c6 {[%emt 0:00:00]} 2. d4 {[%emt 0:00:06]} d5 {[%emt 0:00:00]} 3. exd5 {[%emt 0:00:13]} cxd5 {[%emt 0:00:00]} 4. Nf3 {[%emt 0:01:54]} Nf6 {[%emt 0:00:00]} 5. Ne5 {[%emt 0:00:18]} Nc6 {[%emt 0:04:11]} 6. Bb5 {[%emt 0:01:25]} Qb6 {[%emt 0:03:03]} 7. c4 {[%emt 0:04:21]} Be6 {[%emt 0:06:21]} 8. Qa4 {[%emt 0:09:40]} Rc8 {[%emt 0:12:16]} 9. c5 {[%emt 0:01:23]} Qc7 {[%emt 0:02:37]} 10. Qxa7 {[%emt 0:16:57]} Bd7 {[%emt 0:06:27]} 11. Bxc6 {[%emt 0:02:15]} Bxc6 {[%emt 0:02:09]} 12. Nc3 {[%emt 0:05:59]} Nd7 {[%emt 0:16:52]} 13. Nxc6 {[%emt 0:12:34]} Qxc6 {[%emt 0:00:20]} 14. b4 {[%emt 0:05:18]} g6 {[%emt 0:12:55]} 15. Be3 {[%emt 0:04:03]} Bg7 {[%emt 0:01:20]} 16. b5 {[%emt 0:16:15]} Qc7 {[%emt 0:12:29]} 17. Nxd5 {[%emt 0:01:12]} Qd8 {[%emt 0:00:04]} 18. O-O {[%emt 0:03:06]} e5 {[%emt 0:06:05]} 19. Qxb7 {[%emt 0:07:31]} exd4 {[%emt 0:02:33]} 20. Bg5 {[%emt 0:01:08]} f6 {[%emt 0:05:39]} 21. Rfe1+ {[%emt 0:00:17]} Kf8 {[%emt 0:00:50]} 22. Re7 {[%emt 0:01:48]} 1-0

[Event "St. Petersburg-ch Women 2021"]
[Site "St. Petersburg"]
[Date "2021.03.30"]
[Round "6.7"]
[White "Belenkaya, Dina"]
[Black "Karmanova, Olga Dm."]
[Result "1-0"]
[ECO "B41"]
[WhiteElo "2293"]
[BlackElo "1971"]
[Annotator "NA"]
[PlyCount "75"]
[EventDate "2021.03.25"]
[EventType "swiss"]
[EventCountry "RUS"]
[SourceTitle "playchess.com"]
[Source "ChessBase"]
[SourceQuality "1"]
[TimeControl "40/5400+30:1800+30"]

1. e4 {[%emt 0:03:39]} c5 {[%emt 0:00:00]} 2. Nf3 {[%emt 0:00:15]} a6 {[%emt 0:00:00]} 3. c4 {[%emt 0:00:30]} e6 {[%emt 0:00:00]} 4. Nc3 {[%emt 0:00:21]} Qc7 {[%emt 0:00:00]} 5. d4 {[%emt 0:00:55]} cxd4 {[%emt 0:00:03]} 6. Nxd4 {[%emt 0:00:03]} Nf6 {[%emt 0:00:04]} 7. Be2 {[%emt 0:06:02]} b6 {[%emt 0:00:06]} 8. O-O {[%emt 0:00:49]} Bb7 {[%emt 0:00:04]} 9. Qd3 {[%emt 0:00:51]} Nc6 {[%emt 0:00:44]} 10. Nxc6 {[%emt 0:02:15]} dxc6 {[%emt 0:00:23]} 11. f4 {[%emt 0:00:55]} Be7 {[%emt 0:09:43]} 12. e5 {[%emt 0:08:53]} Nd7 {[%emt 0:01:28]} 13. Qg3 {[%emt 0:02:15]} O-O {[%emt 0:07:43]} 14. Rd1 {[%emt 0:05:17]} f5 {[%emt 0:11:01]} 15. Be3 {[%emt 0:14:13]} Rad8 {[%emt 0:02:28]} 16. Rd2 {[%emt 0:14:27]} c5 {[%emt 0:02:43]} 17. Rad1 {[%emt 0:00:37]} Qc8 {[%emt 0:10:33]} 18. Nd5 {[%emt 0:04:09]} exd5 {[%emt 0:02:43]} 19. cxd5 {[%emt 0:00:01]} Rfe8 {[%emt 0:09:30]} 20. d6 {[%emt 0:00:56]} Bf8 {[%emt 0:06:44]} 21. Bc4+ {[%emt 0:00:46]} Kh8 {[%emt 0:00:06]} 22. Bf7 {[%emt 0:02:47]} Qc6 {[%emt 0:07:41]} 23. Qh3 {[%emt 0:01:29]} Nb8 {[%emt 0:08:56]} 24. Bg6 {[%emt 0:04:08]} h6 {[%emt 0:00:04]} 25. Bxf5 {[%emt 0:01:04]} Nd7 {[%emt 0:05:08]} 26. Qg3 {[%emt 0:02:15]} g5 {[%emt 0:01:15]} 27. h4 {[%emt 0:01:19]} g4 {[%emt 0:03:38]} 28. Qxg4 {[%emt 0:02:13]} Bg7 {[%emt 0:00:06]} 29. Qg6 {[%emt 0:02:01]} Nf8 {[%emt 0:00:04]} 30. Qf7 {[%emt 0:03:12]} Rxd6 {[%emt 0:07:45]} 31. exd6 {[%emt 0:01:03]} Rxe3 {[%emt 0:00:02]} 32. Kh2 {[%emt 0:10:42]} Qa4 {[%emt 0:02:43]} 33. Bh3 {[%emt 0:01:53]} Bc6 {[%emt 0:01:55]} 34. d7 {[%emt 0:01:14]} Nxd7 {[%emt 0:00:27]} 35. Bxd7 {[%emt 0:00:17]} Qe4 {[%emt 0:01:04]} 36. Bxc6 {[%emt 0:00:28]} Qxc6 {[%emt 0:00:03]} 37. Rd8+ {[%emt 0:00:23]} Kh7 {[%emt 0:00:03]} 38. Qg8+ {[%emt 0:00:14]} 1-0

[Event "St. Petersburg-ch Women 2021"]
[Site "St. Petersburg"]
[Date "2021.03.30"]
[Round "6.8"]
[White "Nazarova, Anastasia"]
[Black "Murashova, Ekaterina"]
[Result "0-1"]
[ECO "B38"]
[WhiteElo "2184"]
[BlackElo "2207"]
[Annotator "NA"]
[PlyCount "72"]
[EventDate "2021.03.25"]
[EventType "swiss"]
[EventCountry "RUS"]
[SourceTitle "playchess.com"]
[Source "ChessBase"]
[SourceQuality "1"]
[TimeControl "40/5400+30:1800+30"]

1. e4 {[%emt 0:00:43]} c5 {[%emt 0:00:00]} 2. Nf3 {[%emt 0:00:13]} g6 {[%emt 0:00:00]} 3. c4 {[%emt 0:00:19]} Nc6 {[%emt 0:00:02]} 4. d4 {[%emt 0:00:05]} cxd4 {[%emt 0:00:06]} 5. Nxd4 {[%emt 0:00:03]} Bg7 {[%emt 0:00:07]} 6. Be3 {[%emt 0:00:04]} Qb6 {[%emt 0:00:10]} 7. Nb3 {[%emt 0:01:22]} Qd8 {[%emt 0:00:07]} 8. Nc3 {[%emt 0:01:44]} Bxc3+ {[%emt 0:01:13]} 9. bxc3 {[%emt 0:00:06]} Nf6 {[%emt 0:00:03]} 10. f3 {[%emt 0:03:13]} O-O {[%emt 0:00:15]} 11. c5 {[%emt 0:03:09]} b6 {[%emt 0:00:05]} 12. cxb6 {[%emt 0:01:18]} axb6 {[%emt 0:00:10]} 13. Bb5 {[%emt 0:02:09]} Qc7 {[%emt 0:03:43]} 14. O-O {[%emt 0:03:25]} d6 {[%emt 0:15:57]} 15. Qe2 {[%emt 0:07:40]} Na5 {[%emt 0:24:11]} 16. c4 {[%emt 0:12:40]} Be6 {[%emt 0:03:32]} 17. Rfc1 {[%emt 0:05:56]} Rfc8 {[%emt 0:00:08]} 18. Nxa5 {[%emt 0:01:07]} Rxa5 {[%emt 0:01:04]} 19. Qf2 {[%emt 0:00:55]} Rb8 {[%emt 0:03:59]} 20. Bd4 {[%emt 0:03:52]} Nd7 {[%emt 0:11:08]} 21. f4 {[%emt 0:10:47]} Nc5 {[%emt 0:10:00]} 22. Qf3 {[%emt 0:08:56]} Bd7 {[%emt 0:07:08]} 23. e5 {[%emt 0:12:58]} Ne6 {[%emt 0:05:08]} 24. exd6 {[%emt 0:07:18]} exd6 {[%emt 0:06:44]} 25. Bf6 {[%emt 0:00:35]} Qc5+ {[%emt 0:01:02]} 26. Kh1 {[%emt 0:08:16]} Bxb5 {[%emt 0:00:07]} 27. cxb5 {[%emt 0:00:03]} Qxb5 {[%emt 0:00:04]} 28. Rab1 {[%emt 0:01:35]} Qf5 {[%emt 0:02:57]} 29. Be7 {[%emt 0:00:05]} Rxa2 {[%emt 0:02:43]} 30. Bxd6 {[%emt 0:00:27]} Rd8 {[%emt 0:00:02]} 31. Be5 {[%emt 0:00:40]} f6 {[%emt 0:02:26]} 32. Bb2 {[%emt 0:03:17]} Rd2 {[%emt 0:00:34]} 33. Qb3 {[%emt 0:00:43]} Qe4 {[%emt 0:00:22]} 34. Rc8+ {[%emt 0:00:41]} Kg7 {[%emt 0:00:06]} 35. Rg1 {[%emt 0:00:31]} Raxb2 {[%emt 0:00:12]} 36. Qa3 {[%emt 0:00:31]} Rxg2 {[%emt 0:00:50]} 0-1

[Event "St. Petersburg-ch Women 2021"]
[Site "St. Petersburg"]
[Date "2021.03.31"]
[Round "7.1"]
[White "Getman, Tatyana"]
[Black "Belenkaya, Dina"]
[Result "1-0"]
[ECO "E45"]
[WhiteElo "2271"]
[BlackElo "2293"]
[Annotator "NA"]
[PlyCount "69"]
[EventDate "2021.03.25"]
[EventType "swiss"]
[EventCountry "RUS"]
[SourceTitle "playchess.com"]
[Source "ChessBase"]
[SourceQuality "1"]
[TimeControl "40/5400+30:1800+30"]

1. d4 {[%emt 1:30:30]} Nf6 {[%emt 0:02:41]} 2. c4 {[%emt 0:00:00]} e6 {[%emt 0:00:26]} 3. Nc3 {[%emt 0:00:00]} Bb4 {[%emt 0:02:45]} 4. e3 {[%emt 0:00:00]} b6 {[%emt 0:03:01]} 5. Nge2 {[%emt 0:00:00]} Ba6 {[%emt 0:08:20]} 6. a3 {[%emt 0:00:00]} Bxc3+ {[%emt 0:01:01]} 7. Nxc3 {[%emt 0:00:00]} d5 {[%emt 0:01:57]} 8. b3 {[%emt 0:00:00]} O-O {[%emt 0:08:54]} 9. Bd3 {[%emt 0:00:00]} dxc4 {[%emt 0:02:31]} 10. bxc4 {[%emt 0:00:00]} Nc6 {[%emt 0:00:57]} 11. a4 {[%emt 0:00:00]} Qd7 {[%emt 0:09:04]} 12. O-O {[%emt 0:00:00]} Rfd8 {[%emt 0:08:37]} 13. Bb2 {[%emt 0:00:00]} Na5 {[%emt 0:07:14]} 14. Nb5 {[%emt 0:00:00]} c6 {[%emt 0:01:16]} 15. Na3 {[%emt 0:00:00]} c5 {[%emt 0:07:00]} 16. f4 {[%emt 0:00:00]} cxd4 {[%emt 0:02:24]} 17. exd4 {[%emt 0:00:00]} Rac8 {[%emt 0:01:37]} 18. Qe2 {[%emt 0:00:00]} Ne8 {[%emt 0:10:31]} 19. Rf3 {[%emt 0:00:00]} Nd6 {[%emt 0:04:52]} 20. Rc1 {[%emt 0:00:00]} f5 {[%emt 0:01:25]} 21. Rg3 {[%emt 0:00:00]} Re8 {[%emt 0:00:50]} 22. d5 {[%emt 0:00:00]} exd5 {[%emt 0:01:15]} 23. Qf3 {[%emt 0:00:00]} Re7 {[%emt 0:02:20]} 24. Qxd5+ {[%emt 0:00:00]} Kh8 {[%emt 0:00:30]} 25. c5 {[%emt 0:00:00]} Bb7 {[%emt 0:09:20]} 26. Qxd6 {[%emt 0:00:00]} Qxd6 {[%emt 0:00:41]} 27. cxd6 {[%emt 0:00:00]} Rxc1+ {[%emt 0:00:08]} 28. Bxc1 {[%emt 0:00:00]} Re1+ {[%emt 0:00:06]} 29. Kf2 {[%emt 0:00:00]} Rxc1 {[%emt 0:00:08]} 30. d7 {[%emt 0:00:00]} Nc6 {[%emt 0:00:04]} 31. Re3 {[%emt 0:01:27]} g6 {[%emt 0:00:56]} 32. Bb5 {[%emt 0:00:21]} Rd1 {[%emt 0:00:48]} 33. Bxc6 {[%emt 0:00:13]} Bxc6 {[%emt 0:00:05]} 34. Re8+ {[%emt 0:00:06]} Kg7 {[%emt 0:00:04]} 35. d8=Q {[%emt 0:00:06]} 1-0

[Event "St. Petersburg-ch Women 2021"]
[Site "St. Petersburg"]
[Date "2021.04.02"]
[Round "9.7"]
[White "Balandina, Alisa"]
[Black "Belenkaya, Dina"]
[Result "0-1"]
[ECO "B12"]
[WhiteElo "1596"]
[BlackElo "2293"]
[Annotator "ChessBase"]
[PlyCount "64"]
[EventDate "2021.03.25"]
[EventType "swiss"]
[EventCountry "RUS"]
[SourceTitle "playchess.com"]
[Source "ChessBase"]
[SourceQuality "1"]
[TimeControl "40/5400+30:1800+30"]

1. e4 {[%emt 0:01:55]} c6 {[%emt 0:00:28]} 2. d4 {[%emt 0:00:06]} d5 {[%emt 0:00:04]} 3. e5 {[%emt 0:00:04]} Qb6 {[%emt 0:00:25]} 4. c4 {[%emt 0:08:43]} Bf5 {[%emt 0:01:48]} 5. Nc3 {[%emt 0:01:26]} e6 {[%emt 0:04:01]} 6. c5 {[%emt 0:03:38]} Qc7 {[%emt 0:00:55]} 7. h4 {[%emt 0:02:08]} h5 {[%emt 0:01:00]} 8. Be2 {[%emt 0:01:07]} b6 {[%emt 0:04:53]} 9. cxb6 {[%emt 0:05:02]} axb6 {[%emt 0:00:50]} 10. Bxh5 {[%emt 0:07:53]} c5 {[%emt 0:02:40]} 11. Be2 {[%emt 0:00:55]} Nc6 {[%emt 0:08:45]} 12. Bb5 {[%emt 0:02:04]} cxd4 {[%emt 0:10:33]} 13. Qxd4 {[%emt 0:00:39]} Bc5 {[%emt 0:01:27]} 14. Qf4 {[%emt 0:00:12]} Nge7 {[%emt 0:02:33]} 15. Nf3 {[%emt 0:10:21]} Kf8 {[%emt 0:03:25]} 16. Bxc6 {[%emt 0:01:51]} Nxc6 {[%emt 0:07:01]} 17. Nxd5 {[%emt 0:02:28]} Qd7 {[%emt 0:02:09]} 18. Nc3 {[%emt 0:04:12]} Bd3 {[%emt 0:03:02]} 19. Be3 {[%emt 0:03:56]} Nb4 {[%emt 0:03:16]} 20. O-O-O {[%emt 0:08:03]} Nxa2+ {[%emt 0:09:51]} 21. Nxa2 {[%emt 0:07:33]} Rxa2 {[%emt 0:00:35]} 22. Bd4 {[%emt 0:00:40]} Qb5 {[%emt 0:05:40]} 23. Bc3 {[%emt 0:16:42]} Ra4 {[%emt 0:10:01]} 24. Qg5 {[%emt 0:00:58]} Ra8 {[%emt 0:00:53]} 25. Ne1 {[%emt 0:04:10]} Be7 {[%emt 0:02:03]} 26. Qf4 {[%emt 0:00:28]} Be2 {[%emt 0:01:52]} 27. Rd2 {[%emt 0:00:18]} Ra1+ {[%emt 0:02:00]} 28. Kc2 {[%emt 0:00:05]} Bc4 {[%emt 0:00:51]} 29. Rd6 {[%emt 0:05:30]} Qb3+ {[%emt 0:01:38]} 30. Kd2 {[%emt 0:00:05]} Qd1+ {[%emt 0:00:23]} 31. Ke3 {[%emt 0:00:03]} Qe2+ {[%emt 0:00:34]} 32. Kd4 {[%emt 0:00:04]} Rd1+ {[%emt 0:00:33]} 0-1